bitfinex-derivatives/quotes_ETHF0:USTF0_20241017
["timestamp","ask_amount","ask_price","bid_price","bid_amount"]
[1729201788695,3.85277974,2603.6,2603.5,0.38415]
[1729201788998,4.63947974,2603.6,2603.5,0.38415]
[1729201790099,1.6127,2603.6,2603.5,0.38415]
[1729201795206,4.85287578,2603.7,2603.6,0.38414]
[1729201795406,4.85287578,2603.7,2603.6,0.80794]
[1729201798408,5.25837578,2603.7,2603.6,0.80794]
[1729201799113,5.64537578,2603.7,2603.6,0.80794]
[1729201799809,1.6185,2603.7,2603.6,0.80794]
[1729201800010,4.6448383,2603.7,2603.6,0.80794]
[1729201800512,1.6185,2603.7,2603.6,0.80794]
[1729201800908,1.6185,2603.7,2603.6,0.36377768]
[1729201801709,1.6185,2603.7,2603.6,0.74791768]
[1729201802306,4.64467259,2603.7,2603.6,0.74791768]
[1729201802608,1.6185,2603.7,2603.6,0.74791768]
[1729201803200,4.64456154,2603.7,2603.6,0.74791768]
[1729201805610,4.64456154,2603.7,2603.6,0.38414]
[1729201808230,4.64413639,2603.7,2603.6,0.38414]
[1729201810121,1.6185,2603.7,2603.6,0.38414]
[1729201810538,4.64406515,2603.7,2603.6,0.38414]
[1729201811033,1.6185,2603.7,2603.6,0.38414]
[1729201811228,4.64402212,2603.7,2603.6,0.38414]
[1729201811937,4.64402217,2603.7,2603.6,0.38414]
[1729201812621,1.6185,2603.7,2603.6,0.38414]
[1729201812825,4.64399437,2603.7,2603.6,0.38414]
[1729201815035,1.6185,2603.7,2603.6,0.38414]
[1729201823039,1.6185,2603.7,2603.6,0.24589324]
[1729201827442,4.64479646,2603.7,2603.6,0.24589324]
[1729201827636,1.6185,2603.7,2603.6,0.24589324]
[1729201829243,5.14852788,2603.7,2603.6,0.24589324]
[1729201830143,5.64537578,2603.7,2603.6,0.24589324]
[1729201837043,9.1770728,2603.7,2603.6,0.24589324]
[1729201837238,5.15019702,2603.7,2603.6,0.24589324]
[1729201838045,1.6185,2603.7,2603.6,0.24589324]
[1729201838343,5.15019702,2603.7,2603.6,0.24589324]
[1729201838951,1.6185,2603.7,2603.6,0.24589324]
[1729201842150,5.15019702,2603.7,2603.6,0.24589324]
[1729201842340,1.6185,2603.7,2603.6,0.24589324]
[1729201842541,5.15019702,2603.7,2603.6,0.24589324]
[1729201845149,5.64537578,2603.7,2603.6,0.24589324]
[1729201845748,1.6185,2603.7,2603.6,0.24589324]
[1729201846157,5.64537578,2603.7,2603.6,0.24589324]
[1729201846358,5.64537578,2603.7,2603.5,0.41935782]
[1729201846558,5.64537578,2603.7,2603.5,0.80350782]
[1729201846559,3.53184096,2603.6,2603.5,0.80350782]
[1729201852257,3.02729021,2603.6,2603.5,0.80350782]
[1729201859659,3.02729021,2603.7,2603.6,0.38414]
[1729201860366,0.3875,2603.7,2603.6,0.38414]
[1729201861263,0.7768,2603.7,2603.5,0.41935782]
[1729201861454,3.53168201,2603.6,2603.5,0.80350782]
[1729201862266,4.30848201,2603.7,2603.5,0.41935782]
[1729201862564,0.7768,2603.7,2603.6,0.38414]
[1729201866463,4.30799739,2603.7,2603.6,0.38414]
[1729201867265,3.80353955,2603.7,2603.6,0.38414]
[1729201876565,3.80353955,2603.7,2603.6,0.24103076]
[1729201877071,0.7768,2603.7,2603.6,0.24103076]
[1729201877470,3.80353955,2603.7,2603.6,0.24103076]
[1729201882475,4.30799739,2603.7,2603.6,0.24103076]
[1729201884076,0.7768,2603.7,2603.6,0.24103076]
[1729201886766,4.30790152,2603.7,2603.6,0.24103076]
[1729201886979,0.7768,2603.7,2603.6,0.24103076]
[1729201887868,4.30794212,2603.7,2603.6,0.24103076]
[1729201889466,0.7768,2603.7,2603.6,0.24103076]
[1729201890382,3.80361407,2603.7,2603.6,0.24103076]
[1729201891565,3.80361407,2603.7,2603.5,0.41935782]
[1729201891772,3.80361407,2603.7,2603.6,0.38414]
[1729201904486,0.7768,2603.7,2603.6,0.38414]
[1729201909889,4.30849561,2603.7,2603.6,0.38414]
[1729201912588,0.7768,2603.7,2603.6,0.38414]
[1729201914495,0.7768,2603.7,2603.6,0.24289524]
[1729201915691,0.7768,2603.7,2603.6,0.64799524]
[1729201918300,0.4269,2603.8,2603.6,0.4051]
[1729201918502,0.4269,2603.8,2603.7,0.38412]
[1729201918799,0.4269,2603.8,2603.7,0.78412]
[1729201919189,0.8108,2603.9,2603.7,0.4]
[1729201919395,0.8108,2603.9,2603.8,0.38411]
[1729201919697,4.34131017,2603.9,2603.8,0.38411]
[1729201920003,0.8108,2603.9,2603.8,0.38411]
[1729201920703,4.34129919,2603.9,2603.8,0.38411]
[1729201921009,0.8108,2603.9,2603.8,0.38411]
[1729201922306,0.8108,2603.9,2603.8,3.59191]
[1729201925500,0.8108,2603.9,2603.8,0.38411]
[1729201925695,0.8108,2603.9,2603.8,3.59191]
[1729201927204,0.8108,2603.9,2603.8,0.38411]
[1729201927402,0.8108,2603.9,2603.8,3.59191]
[1729201928194,0.8108,2603.9,2603.8,0.38411]
[1729201928610,0.8108,2603.9,2603.8,3.59191]
[1729201930603,0.8108,2603.9,2603.8,0.38411]
[1729201930800,0.8108,2603.9,2603.8,3.59191]
[1729201934217,0.8108,2603.9,2603.8,0.38411]
[1729201942923,0.8108,2603.9,2603.8,3.59191]
[1729201944532,0.8108,2603.9,2603.8,0.38411]
[1729201947633,0.8108,2603.9,2603.8,3.59191]
[1729201949330,0.8108,2603.9,2603.8,0.38411]
[1729201949736,0.8108,2603.9,2603.8,3.59191]
[1729201950535,0.4146,2604.1,2604.0,0.38408]
[1729201951130,0.4146,2604.1,2604.0,0.77648]
[1729201951832,4.34661969,2604.6,2604.0,0.77648]
[1729201952031,0.78071,2604.5,2604.4,0.384]
[1729201953742,2.41361,2604.5,2604.4,0.384]
[1729201953942,1.59161,2604.5,2604.4,0.384]
[1729201954140,2.41361,2604.5,2604.4,0.384]
[1729201957447,2.0296,2604.5,2604.4,0.384]
[1729201959737,1.2076,2604.5,2604.4,0.384]
[1729201971954,0.8134,2604.5,2604.4,0.384]
[1729201972259,1.2266,2604.5,2604.4,0.384]
[1729201995261,4.75121969,2604.5,2604.4,0.384]
[1729201996156,1.2266,2604.5,2604.4,0.384]
[1729201997670,1.2266,2604.5,2604.4,0.23918239]
[1729201997967,4.75121969,2604.5,2604.4,0.23918239]
[1729201999955,1.2266,2604.5,2604.4,0.23918239]
[1729202000161,4.75121969,2604.5,2604.4,0.23918239]
[1729202000369,1.2266,2604.5,2604.4,0.23918239]
[1729202001086,4.75121969,2604.5,2604.4,0.23918239]
[1729202001261,1.2266,2604.5,2604.4,0.23918239]
[1729202009670,4.75121969,2604.5,2604.4,0.23918239]
[1729202017776,1.2266,2604.5,2604.4,0.23918239]
[1729202018882,0.8134,2604.5,2604.4,0.23918239]
[1729202019380,0.8134,2604.5,2604.3,0.8]
[1729202019576,0.8134,2604.5,2604.4,0.384]
[1729202063019,0.8134,2604.5,2604.4,0.23764297]
[1729202094120,0.818,2604.7,2604.4,0.96002]
[1729202094326,0.818,2604.7,2604.6,0.38399]
[1729202094527,0.818,2604.7,2604.6,0.2388092]
[1729202104535,0.818,2604.7,2604.5,0.4074]
[1729202105329,0.818,2604.7,2604.6,0.38399]
[1729202106232,1.1761,2604.8,2604.7,0.38397]
[1729202106427,1.1761,2604.8,2604.5,0.4074]
[1729202106428,0.43403,2604.7,2604.5,0.4074]
[1729202106629,0.43403,2604.7,2604.6,0.38399]
[1729202112135,1.1761,2604.8,2604.5,0.4074]
[1729202112444,1.1761,2604.8,2604.7,0.38397]
[1729202119150,0.818,2605.0,2604.9,0.38394]
[1729202119443,2.0464,2605.0,2604.9,0.38394]
[1729202120849,2.0454,2605.0,2604.9,0.38394]
[1729202123649,1.2284,2605.0,2604.9,0.38394]
[1729202124153,1.2284,2605.0,2604.9,0.0961055]
[1729202124452,1.2284,2605.0,2604.9,0.38394]
[1729202131243,5.25653678,2605.0,2604.9,0.38394]
[1729202131444,1.2284,2605.0,2604.9,0.38394]
[1729202136558,0.838,2605.0,2604.9,0.38394]
[1729202136859,0.817,2605.1,2605.0,0.38393]
[1729202138362,0.78571,2605.2,2605.0,0.38393]
[1729202138663,0.817,2605.1,2605.0,0.38393]
[1729202138962,1.20092,2605.1,2605.0,0.38393]
[1729202143757,0.817,2605.1,2605.0,0.38393]
[1729202144470,1.20092,2605.1,2605.0,0.38393]
[1729202144764,0.817,2605.1,2605.0,0.38393]
[1729202147569,0.817,2605.1,2605.0,0.24301144]
[1729202151765,0.4018,2605.2,2605.1,0.38392]
[1729202152972,4.42993678,2605.2,2605.1,0.38392]
[1729202154677,0.4018,2605.2,2605.1,0.38392]
[1729202155574,4.42993678,2605.2,2605.1,0.38392]
[1729202157168,0.4018,2605.2,2605.1,0.38392]
[1729202157771,0.4018,2605.2,2605.1,0.78342]
[1729202161077,0.8145,2605.3,2605.1,0.3995]
[1729202161270,0.8145,2605.3,2605.2,0.3839]
[1729202162677,0.8145,2605.3,2605.1,0.3995]
[1729202163281,0.8145,2605.3,2605.2,0.3839]
[1729202167475,7.63734206,2605.7,2605.1,0.3995]
[1729202167476,7.23593678,2605.7,2605.6,0.38384]
[1729202167681,4.3894,2605.7,2605.6,0.38384]
[1729202168471,3.2078,2606.0,2605.6,3.8376]
[1729202168677,0.816,2606.1,2605.7,0.7955]
[1729202168880,0.816,2606.1,2606.0,0.38378]
[1729202170679,1.1928,2606.2,2606.1,0.38377]
[1729202175685,1.57655,2606.2,2606.1,0.38377]
[1729202176374,1.1928,2606.2,2606.1,0.38377]
[1729202176990,1.57655,2606.2,2606.1,0.38377]
[1729202182082,1.1928,2606.2,2606.1,0.38377]
[1729202189115,1.2187,2606.5,2606.4,0.38372]
[1729202189607,1.2187,2606.5,2606.4,3.59152]
[1729202191410,1.2187,2606.5,2606.4,0.38372]
[1729202191897,1.2187,2606.5,2606.4,3.59152]
[1729202192302,1.2187,2606.5,2606.4,0.38372]
[1729202193910,1.2187,2606.5,2606.4,3.59152]
[1729202194208,1.2187,2606.5,2606.4,0.38372]
[1729202194805,1.2187,2606.5,2606.4,3.59152]
[1729202195413,1.2187,2606.5,2606.4,0.38372]
[1729202196513,1.2187,2606.5,2606.4,3.59152]
[1729202198616,1.2187,2606.5,2606.4,0.38372]
[1729202198811,1.2187,2606.5,2606.4,3.59152]
[1729202199716,1.2187,2606.5,2606.4,0.38372]
[1729202199911,0.8125,2606.5,2606.4,0.38372]
[1729202200215,0.4016,2606.5,2606.4,3.59152]
[1729202205913,0.4016,2606.5,2606.4,0.38372]
[1729202206514,0.4016,2606.5,2606.4,3.59152]
[1729202206909,0.4016,2606.5,2606.4,0.38372]
[1729202207311,0.4016,2606.5,2606.4,3.59152]
[1729202207514,0.8408,2606.7,2606.4,3.2078]
[1729202207818,0.8408,2606.7,2606.6,0.38369]
[1729202208020,0.8209,2606.7,2606.6,0.38369]
[1729202211524,0.8209,2606.7,2606.5,1.23]
[1729202211525,0.4031,2606.9,2606.5,1.23]
[1729202211823,1.2181,2606.9,2606.8,0.38366]
[1729202212211,0.4031,2606.9,2606.8,0.38366]
[1729202216925,0.4031,2606.9,2606.8,0.78766]
[1729202222838,0.8118,2607.0,2606.9,0.38365]
[1729202223230,4.6478,2607.0,2606.9,0.38365]
[1729202224530,0.8118,2607.0,2606.9,0.38365]
[1729202224835,4.6478,2607.0,2606.9,0.38365]
[1729202225939,0.8118,2607.0,2606.9,0.38365]
[1729202232130,1.19544,2607.0,2606.9,0.38365]
[1729202232649,1.2278,2607.2,2606.8,3.6118]
[1729202232942,0.38364,2607.0,2606.9,0.38364]
[1729202234642,0.8418,2607.1,2606.9,0.38364]
[1729202234643,1.22543,2607.1,2606.9,0.38364]
[1729202235641,0.38364,2607.0,2606.9,0.38364]
[1729202236040,1.22543,2607.1,2606.9,0.38364]
[1729202237341,1.22543,2607.1,2606.8,0.404]
[1729202237545,1.22543,2607.1,2606.9,0.38365]
[1729202237932,0.38364,2607.0,2606.9,0.38365]
[1729202238135,0.38364,2607.0,2606.9,3.59145]
[1729202238943,0.38364,2607.0,2606.9,0.38365]
[1729202239135,0.38364,2607.0,2606.9,3.59145]
[1729202239855,0.38364,2607.0,2606.9,0.38365]
[1729202241061,0.38364,2607.0,2606.9,3.59145]
[1729202241347,0.38364,2607.0,2606.9,0.38365]
[1729202241548,0.38364,2607.0,2606.9,3.59145]
[1729202242355,0.8418,2607.1,2606.9,3.2078]
[1729202242543,0.38364,2607.0,2606.9,3.59144]
[1729202242850,0.38364,2607.0,2606.9,0.38364]
[1729202243246,2.03943,2607.1,2606.9,0.38364]
[1729202244156,1.6558,2607.1,2606.9,0.38364]
[1729202244342,0.38364,2607.0,2606.9,0.38364]
[1729202244543,0.38364,2607.0,2606.8,0.404]
[1729202244544,2.03942,2607.1,2607.0,0.38364]
[1729202244745,1.6558,2607.1,2607.0,0.38364]
[1729202251960,1.2295,2607.1,2607.0,0.78784]
[1729202252256,0.814,2607.1,2607.0,0.78784]
[1729202252465,0.814,2607.1,2607.0,1.18664]
[1729202253056,0.43041,2607.2,2607.0,0.803]
[1729202253253,0.43041,2607.2,2607.1,0.80972]
[1729202254459,0.43039,2607.2,2607.1,0.4261]
[1729202254658,0.43039,2607.2,2607.1,0.80972]
[1729202257458,0.78338,2607.4,2607.1,0.4261]
[1729202257459,0.43041,2607.3,2607.1,0.4261]
[1729202257759,0.43041,2607.3,2607.2,0.38361]
[1729202258464,0.814,2607.3,2607.2,0.38361]
[1729202258663,0.43041,2607.3,2607.2,0.38361]
[1729202259765,1.59738,2607.4,2607.3,0.38359]
[1729202259970,0.3998,2607.4,2607.3,0.38359]
[1729202260154,1.2138,2607.4,2607.3,0.38359]
[1729202261457,0.3998,2607.4,2607.3,0.38359]
[1729202261665,1.59738,2607.4,2607.3,0.38359]
[1729202264467,0.3998,2607.4,2607.3,0.38359]
[1729202264964,0.3998,2607.4,2607.3,0.78709]
[1729202266568,1.19755,2607.6,2607.5,0.38356]
[1729202267563,0.814,2607.6,2607.5,0.23861687]
[1729202268171,1.19755,2607.6,2607.5,0.23861687]
[1729202269071,1.19755,2607.6,2607.5,0.38356]
[1729202269374,0.814,2607.6,2607.5,0.38356]
[1729202269568,1.19755,2607.6,2607.5,0.38356]
[1729202270266,0.38355,2607.6,2607.4,0.3954]
[1729202270464,1.19755,2607.6,2607.4,0.3954]
[1729202270771,1.19755,2607.6,2607.4,0.77897]
[1729202271175,0.814,2607.6,2607.4,0.77897]
[1729202271470,1.19756,2607.6,2607.4,0.77897]
[1729202272872,0.38356,2607.5,2607.4,0.77897]
[1729202273969,0.78546,2607.5,2607.4,0.77897]
[1729202276066,0.4019,2607.5,2607.4,0.77897]
[1729202278372,1.19755,2607.6,2607.4,0.77897]
[1729202278373,0.814,2607.6,2607.4,0.3954]
[1729202278574,0.814,2607.6,2607.5,0.38356]
[1729202278968,1.19755,2607.6,2607.5,0.38356]
[1729202279574,0.38355,2607.6,2607.5,0.38356]
[1729202279984,2.01854,2607.7,2607.5,0.38356]
[1729202280186,0.38355,2607.6,2607.5,0.38356]
[1729202280385,0.38355,2607.6,2607.4,0.77897]
[1729202280675,0.38355,2607.6,2607.5,0.38356]
[1729202281369,0.38355,2607.6,2607.4,0.3954]
[1729202281574,0.38355,2607.6,2607.4,0.77897]
[1729202283378,0.38355,2607.6,2607.5,0.38356]
[1729202290376,0.38356,2607.5,2607.2,3.2078]
[1729202290583,0.8391,2607.4,2607.2,3.2078]
[1729202290792,0.38359,2607.3,2607.2,3.2078]
[1729202290980,4.21879,2607.3,2607.2,3.2078]
[1729202291185,0.38361,2607.2,2607.1,0.38362]
[1729202291381,1.19661,2607.2,2607.1,0.38362]
[1729202291582,1.19661,2607.2,2607.0,0.38363]
[1729202291780,0.4261,2607.1,2607.0,0.38364]
[1729202292182,0.80972,2607.1,2607.0,0.38364]
[1729202292384,0.38364,2607.0,2606.9,0.38364]
[1729202292691,0.78944,2607.0,2606.9,0.38364]
[1729202293389,0.38365,2606.9,2606.8,3.59145]
[1729202293980,0.79655,2606.9,2606.8,3.59145]
[1729202299681,0.4129,2606.9,2606.8,3.59145]
[1729202300703,0.4129,2606.9,2606.8,5.50951045]
[1729202300992,0.79655,2606.9,2606.8,5.50951045]
[1729202301184,0.4129,2606.9,2606.8,5.50951045]
[1729202302487,0.79655,2606.9,2606.8,5.12586045]
[1729202303498,0.79655,2606.9,2606.8,5.50952045]
[1729202304495,0.79655,2606.9,2606.8,2.30172045]
[1729202304897,0.79655,2606.9,2606.8,1.91806045]
[1729202305596,0.79655,2606.9,2606.8,2.30172045]
[1729202305799,0.79655,2606.9,2606.8,1.91806045]
[1729202305989,0.79655,2606.9,2606.8,2.30172045]
[1729202313599,0.79655,2606.9,2606.8,1.91806045]
[1729202313801,0.79655,2606.9,2606.8,2.30172045]
[1729202314197,0.79655,2606.9,2606.8,1.91806045]
[1729202316291,0.79655,2606.9,2606.8,2.30172045]
[1729202316492,0.79655,2606.9,2606.8,1.91806045]
[1729202318204,0.79655,2606.9,2606.8,2.30172045]
[1729202320099,0.79655,2606.9,2606.8,1.91806045]
[1729202320301,10.63255,2606.9,2606.8,1.91806045]
[1729202320715,51.43255,2606.9,2606.8,1.91806045]
[1729202321102,0.38369,2606.6,2606.5,3.2078]
[1729202321303,0.38369,2606.6,2606.5,3.0078]
[1729202321304,1.19669,2606.6,2606.5,3.0078]
[1729202321503,11.03349,2606.6,2606.5,3.0078]
[1729202322003,0.38375,2606.2,2606.1,3.2078]
[1729202322204,4.40898902,2606.2,2606.1,3.2078]
[1729202322505,10.40898902,2606.2,2606.1,3.2078]
[1729202323097,0.38381,2605.8,2605.7,0.402]
[1729202323311,1.19681,2605.8,2605.7,0.402]
[1729202324901,11.03441,2605.8,2605.7,0.402]
[1729202325102,5.03441,2605.8,2605.7,0.402]
[1729202329715,4.22141,2605.8,2605.7,0.402]
[1729202329917,4.6506,2605.8,2605.7,0.78583]
[1729202330113,0.813,2605.8,2605.7,0.78583]
[1729202332424,0.3838,2605.9,2605.7,0.78583]
[1729202332425,0.3838,2605.9,2605.7,0.402]
[1729202332617,0.42919,2605.8,2605.7,0.402]
[1729202333016,0.42919,2605.8,2605.7,0.78583]
[1729202339127,0.30419,2605.8,2605.7,0.78583]
[1729202340622,3.59158,2606.1,2605.9,0.38378]
[1729202340816,0.3913,2606.0,2605.9,0.38378]
[1729202342422,0.77508,2606.0,2605.9,0.38378]
[1729202342624,0.77508,2606.0,2605.8,0.3838]
[1729202342822,0.77508,2606.0,2605.9,0.3838]
[1729202347522,0.77508,2606.0,2605.8,0.3905]
[1729202347729,0.77508,2606.0,2605.8,0.7743]
[1729202350130,0.42921,2605.9,2605.8,0.3905]
[1729202350331,0.42921,2605.9,2605.8,0.77431]
[1729202354837,0.42921,2605.9,2605.8,1.17291]
[1729202355528,0.81301,2605.9,2605.8,1.17291]
[1729202357142,0.42921,2605.9,2605.8,1.17291]
[1729202358335,0.81301,2605.9,2605.8,1.17291]
[1729202359443,2.19301,2605.9,2605.8,1.17291]
[1729202360534,1.80921,2605.9,2605.8,1.17291]
[1729202360841,2.19301,2605.9,2605.8,1.17291]
[1729202361137,0.81301,2605.9,2605.8,0.7891]
[1729202362642,0.81301,2605.9,2605.8,1.17291]
[1729202364340,0.81301,2605.9,2605.8,0.7891]
[1729202364547,0.81301,2605.9,2605.8,1.17291]
[1729202365146,0.81301,2605.9,2605.8,0.7891]
[1729202365348,0.81301,2605.9,2605.8,1.17291]
[1729202368435,0.81301,2605.9,2605.8,0.7891]
[1729202368846,0.81301,2605.9,2605.8,1.17291]
[1729202369549,2.19301,2605.9,2605.8,1.17291]
[1729202369952,2.19301,2605.9,2605.8,0.7891]
[1729202370742,2.19301,2605.9,2605.8,1.17291]
[1729202371044,2.19301,2605.9,2605.8,0.7891]
[1729202373252,0.81301,2605.9,2605.8,0.7891]
[1729202373948,1.1968,2605.9,2605.8,1.17291]
[1729202374248,2.5768,2605.9,2605.8,1.17291]
[1729202377249,2.5768,2605.9,2605.8,0.7891]
[1729202378152,2.5768,2605.9,2605.8,1.17291]
[1729202379947,2.5768,2605.9,2605.8,0.7891]
[1729202383850,2.9926,2605.9,2605.8,0.7891]
[1729202387853,1.6126,2605.9,2605.8,0.7891]
[1729202392459,2.9926,2605.9,2605.8,0.7891]
[1729202396959,2.6088,2605.9,2605.8,1.17291]
[1729202397262,2.6078,2605.9,2605.8,1.17291]
[1729202397959,2.6078,2605.9,2605.8,0.7891]
[1729202397960,2.9916,2605.9,2605.8,0.7891]
[1729202399864,2.9916,2605.9,2605.8,1.17291]
[1729202400366,1.2278,2605.9,2605.8,0.7891]
[1729202400662,4.0198,2606.1,2606.0,0.38378]
[1729202400863,5.3998,2606.1,2606.0,0.38378]
[1729202401174,4.5878,2606.1,2606.0,0.38378]
[1729202401363,0.812,2606.3,2606.0,11.2176]
[1729202401667,4.02813678,2606.7,2606.3,0.38374]
[1729202401668,1.38,2606.4,2606.3,0.38374]
[1729202401870,1.38,2606.5,2606.3,1.38]
[1729202402068,4.02813678,2607.0,2606.3,0.95935]
[1729202402369,1.38,2607.2,2607.1,0.38362]
[1729202402555,1.38,2607.2,2606.5,1.51018583]
[1729202402556,1.38,2607.2,2606.5,1.00679055]
[1729202402755,0.089,2607.6,2607.4,0.38358]
[1729202403059,0.38364,2607.0,2606.7,3.59147]
[1729202403261,1.38,2606.9,2606.7,3.2078]
[1729202403472,1.38,2606.9,2606.8,0.38366]
[1729202403968,1.38,2606.9,2606.7,3.59148]
[1729202404464,1.38,2606.9,2606.8,0.38366]
[1729202407063,1.38,2606.9,2606.7,3.2078]
[1729202407273,2.19006,2606.8,2606.7,3.2078]
[1729202407670,1.8064,2606.8,2606.7,3.2078]
[1729202407875,2.19006,2606.8,2606.7,3.2078]
[1729202409172,1.8064,2606.8,2606.7,3.2078]
[1729202409367,2.19006,2606.8,2606.7,3.2078]
[1729202415986,2.19006,2606.8,2606.6,0.38369]
[1729202416187,2.19006,2606.8,2606.6,3.59149]
[1729202417789,0.38368,2606.7,2606.6,3.2078]
[1729202417984,1.8064,2606.8,2606.3,0.4021]
[1729202418186,1.76372,2606.4,2606.3,0.4021]
[1729202418396,2.295,2606.4,2606.1,3.2078]
[1729202418693,1.76375,2606.2,2606.1,3.59157]
[1729202419394,1.38,2606.2,2606.1,3.2078]
[1729202419594,1.76375,2606.2,2606.1,3.2078]
[1729202419786,1.76375,2606.2,2606.1,3.59157]
[1729202419988,1.38,2606.2,2606.1,3.59157]
[1729202422094,1.38,2606.2,2606.1,0.38377]
[1729202422293,1.38,2606.2,2606.1,3.59157]
[1729202422690,1.38,2606.2,2606.1,0.38377]
[1729202422890,1.38,2606.2,2606.1,3.59157]
[1729202428897,1.38,2606.2,2606.1,0.38377]
[1729202429093,1.38,2606.2,2606.1,3.59157]
[1729202429294,2.16855,2606.3,2606.2,0.38375]
[1729202430888,1.7848,2606.3,2606.2,0.38375]
[1729202432006,1.7848,2606.3,2606.2,0.79505]
[1729202434507,0.4243,2606.6,2606.5,0.38371]
[1729202434707,0.51029,2606.4,2606.3,0.79034]
[1729202435005,1.89029,2606.4,2606.3,0.79034]
[1729202435492,1.38,2606.5,2606.4,0.38372]
[1729202435803,2.274,2606.5,2606.4,3.59152]
[1729202436800,1.38,2606.5,2606.4,3.59152]
[1729202438693,2.274,2606.5,2606.4,3.59152]
[1729202439802,2.274,2606.5,2606.4,0.38372]
[1729202440203,1.38,2606.5,2606.4,3.59152]
[1729202440405,0.089,2607.4,2606.4,14.4246]
[1729202440607,1.38,2607.0,2606.9,0.38365]
[1729202440799,1.38,2607.0,2606.9,0.79945]
[1729202442003,2.76,2607.0,2606.9,0.38365]
[1729202442209,3.14364,2607.0,2606.9,0.38365]
[1729202442397,3.56194,2607.0,2606.9,0.38365]
[1729202442603,0.38365,2606.9,2606.8,3.2078]
[1729202442803,2.17635,2606.9,2606.8,3.2078]
[1729202443110,6.01235,2606.9,2606.8,3.2078]
[1729202444113,0.38367,2606.8,2606.6,0.38369]
[1729202444306,1.38,2606.7,2606.6,0.38369]
[1729202444699,1.76368,2606.7,2606.6,0.38369]
[1729202444903,1.38,2606.7,2606.4,3.6236]
[1729202445128,1.38,2606.5,2606.4,4.00732]
[1729202450405,1.38,2606.5,2606.4,3.6236]
[1729202450609,1.38,2606.5,2606.4,4.00732]
[1729202450610,1.76371,2606.5,2606.4,4.00732]
[1729202451412,2.65771,2606.5,2606.4,4.00732]
[1729202451611,3.04971,2606.5,2606.4,4.00732]
[1729202456613,3.04971,2606.5,2606.4,0.79952]
[1729202459624,0.5103,2606.5,2606.4,0.4158]
[1729202459809,1.8903,2606.5,2606.4,0.4158]
[1729202460013,1.8903,2606.5,2606.4,0.79952]
[1729202460321,2.27401,2606.5,2606.4,0.79952]
[1729202460511,2.27401,2606.5,2606.4,0.4158]
[1729202460707,2.27401,2606.5,2606.4,0.79952]
[1729202460915,2.27401,2606.5,2606.4,0.4158]
[1729202461216,0.38374,2606.3,2606.2,3.2078]
[1729202461515,3.14374,2606.3,2606.2,3.2078]
[1729202461725,1.76374,2606.3,2606.2,3.59155]
[1729202461910,2.16534,2606.3,2606.2,3.2078]
[1729202462414,2.16534,2606.3,2606.2,3.59155]
[1729202464021,2.16534,2606.3,2606.2,3.2078]
[1729202464225,2.16534,2606.3,2606.2,3.59155]
[1729202464423,2.16534,2606.3,2606.2,3.2078]
[1729202465025,2.16534,2606.3,2606.2,3.59155]
[1729202466025,2.16534,2606.3,2606.2,3.2078]
[1729202466524,2.16534,2606.3,2606.2,3.59155]
[1729202467625,0.78534,2606.3,2606.2,3.59155]
[1729202467815,2.16534,2606.3,2606.2,3.59155]
[1729202468716,0.3941,2606.6,2606.2,3.59155]
[1729202468917,1.27071,2606.5,2606.4,0.38372]
[1729202469118,2.65071,2606.5,2606.4,0.38372]
[1729202469318,2.65071,2606.5,2606.3,1.2193]
[1729202469519,2.65071,2606.5,2606.4,0.38372]
[1729202470318,2.65072,2606.5,2606.4,0.38372]
[1729202476529,2.267,2606.5,2606.4,0.38372]
[1729202476835,1.76371,2606.5,2606.4,0.38372]
[1729202477033,2.65071,2606.5,2606.4,0.38372]
[1729202478028,0.38372,2606.4,2606.3,1.60303]
[1729202479237,0.38372,2606.4,2606.3,4.81083]
[1729202480233,2.65072,2606.5,2606.4,0.38372]
[1729202480724,0.38372,2606.4,2606.3,4.81083]
[1729202481030,2.65071,2606.5,2606.4,0.38372]
[1729202481226,1.76371,2606.5,2606.4,0.38372]
[1729202481429,2.267,2606.5,2606.4,0.38372]
[1729202482620,2.65071,2606.5,2606.4,0.38372]
[1729202487027,2.267,2606.5,2606.4,0.38372]
[1729202487835,1.38,2606.5,2606.4,0.38372]
[1729202491437,1.76371,2606.5,2606.4,0.38372]
[1729202493322,1.38,2606.5,2606.4,0.38372]
[1729202493628,1.76371,2606.5,2606.4,0.38372]
[1729202495339,1.38,2606.5,2606.4,0.38372]
[1729202495938,1.76371,2606.5,2606.4,0.38372]
[1729202498043,0.38371,2606.5,2606.4,0.38372]
[1729202498240,1.76371,2606.5,2606.4,0.38372]
[1729202501241,1.38,2606.5,2606.4,0.38372]
[1729202504749,1.76371,2606.5,2606.4,0.38372]
[1729202505744,1.38,2606.5,2606.4,0.38372]
[1729202507347,0.4015,2606.8,2606.4,0.38372]
[1729202507643,0.38365,2607.0,2606.6,4.5878]
[1729202507848,0.38363,2607.1,2607.0,0.38363]
[1729202508257,4.49341,2607.2,2607.1,0.38362]
[1729202508749,1.38,2607.2,2607.1,0.38362]
[1729202509053,1.76361,2607.2,2607.1,0.38362]
[1729202509250,1.38,2607.2,2607.1,0.38362]
[1729202509457,1.76361,2607.2,2607.1,0.38362]
[1729202509647,1.76361,2607.2,2607.1,0.78942]
[1729202511950,0.8139,2607.3,2607.2,0.38361]
[1729202512148,1.38,2607.3,2607.2,3.2078]
[1729202512353,1.38,2607.3,2607.2,4.01931]